bitfinex/quotes_BTCUSD_20241003
["timestamp","ask_amount","ask_price","bid_price","bid_amount"]
[1727951645110,0.05261051,61022.0,61021.0,0.163878]
[1727951646044,0.17387,61024.0,61021.0,0.163878]
[1727951646045,0.004,61024.0,61022.0,0.163873]
[1727951646311,0.004,61024.0,61021.0,0.327754]
[1727951646543,0.004,61022.0,61021.0,0.163878]
[1727951647009,0.003,61023.0,61021.0,0.163878]
[1727951647262,0.05411061,61022.0,61021.0,0.163878]
[1727951647495,0.05411061,61022.0,61019.0,0.163882]
[1727951647716,0.05411061,61022.0,61020.0,0.163879]
[1727951648405,0.163878,61021.0,61018.0,0.163883]
[1727951648636,0.05211061,61022.0,61020.0,0.16388]
[1727951648859,0.21998561,61022.0,61019.0,0.163881]
[1727951649297,0.05211061,61022.0,61018.0,0.327769]
[1727951649516,0.003,61021.0,61020.0,0.16388]
[1727951649962,0.163871,61024.0,61020.0,0.16388]
[1727951650187,0.163873,61023.0,61020.0,0.16388]
[1727951650407,0.006,61022.0,61020.0,0.16388]
[1727951650622,0.08918511,61022.0,61020.0,0.16388]
[1727951651063,0.001,61021.0,61020.0,0.16388]
[1727951651284,0.004,61022.0,61020.0,0.16388]
[1727951651471,0.163873,61023.0,61020.0,0.16388]
[1727951651692,0.166873,61023.0,61020.0,0.16388]
[1727951651917,0.0823163,61022.0,61020.0,0.001]
[1727951652138,0.003,61023.0,61021.0,0.163877]
[1727951652511,0.003,61023.0,61020.0,0.001]
[1727951652512,0.166872,61023.0,61020.0,0.163879]
[1727951652624,0.004,61022.0,61020.0,0.163879]
[1727951653059,0.16387,61024.0,61021.0,0.163878]
[1727951653274,0.000818,61025.0,61020.0,0.16388]
[1727951653275,0.2508859,61023.0,61020.0,0.16388]
[1727951653524,0.2508859,61023.0,61017.0,0.57605466]
[1727951653525,0.0870139,61023.0,61017.0,0.57605466]
[1727951653748,0.165875,61022.0,61019.0,0.163881]
[1727951653968,0.005,61023.0,61018.0,0.327769]
[1727951654191,0.168873,61023.0,61020.0,0.163879]
[1727951654669,0.004,61024.0,61020.0,0.327759]
[1727951654918,0.006,61022.0,61020.0,0.327759]
[1727951655154,0.006,61022.0,61020.0,0.16388]
[1727951655366,0.002,61022.0,61020.0,0.16388]
[1727951655592,0.002,61022.0,61020.0,0.163878]
[1727951655821,0.0846156,61022.0,61020.0,0.163878]
[1727951656044,0.0826156,61022.0,61020.0,0.163878]
[1727951656296,0.0752,61021.0,61010.0,0.25070476]
[1727951656551,0.239078,61021.0,61020.0,0.001]
[1727951657031,0.45583884,61021.0,61020.0,0.001]
[1727951657277,0.55513884,61021.0,61020.0,0.0009]
[1727951657514,0.71832555,61021.0,61020.0,0.0009]
[1727951657748,0.163904,61011.0,61010.0,0.25071666]
[1727951657986,0.163902,61012.0,61010.0,0.24971666]
[1727951658449,0.327797,61014.0,61010.0,0.001436]
[1727951658703,0.163903,61012.0,61010.0,0.001436]
[1727951658945,0.163904,61011.0,61010.0,0.001436]
[1727951659922,0.163904,61011.0,61010.0,0.002436]
[1727951660215,0.163904,61011.0,61010.0,0.001436]
[1727951660442,0.163904,61011.0,61010.0,0.002436]
[1727951660676,0.03835796,61011.0,61010.0,0.002436]
[1727951660919,0.006,61011.0,61010.0,0.166343]
[1727951661168,0.014,61011.0,61010.0,0.167343]
[1727951663086,0.014,61011.0,61010.0,0.33052971]
[1727951663316,0.008,61011.0,61010.0,0.32952971]
[1727951663536,0.008,61011.0,61010.0,0.33352971]
[1727951664026,0.18956146,61024.0,61019.0,0.163881]
[1727951664278,0.05362462,61023.0,61020.0,0.163879]
[1727951664501,0.05362462,61023.0,61019.0,0.327763]
[1727951664942,0.05362462,61023.0,61020.0,0.163879]
[1727951665170,0.05362462,61023.0,61021.0,0.163876]
[1727951665631,0.0663771,61024.0,61021.0,0.163876]
[1727951665854,0.008,61023.0,61022.0,0.163874]
[1727951666320,0.008,61023.0,61021.0,0.163877]
[1727951666532,0.008,61023.0,61022.0,0.163875]
[1727951666996,0.08889491,61023.0,61019.0,0.001]
[1727951667221,0.3941181,61024.0,61010.0,0.41389967]
[1727951667222,0.32775,61022.0,61010.0,0.41389967]
[1727951667460,0.0663771,61024.0,61017.0,0.24828066]
[1727951667687,0.05362223,61023.0,61010.0,0.41389967]
[1727951667969,0.006,61023.0,61022.0,0.001]
[1727951668196,0.171873,61023.0,61021.0,0.001]
[1727951668416,0.163875,61022.0,61021.0,0.001]
[1727951668638,0.26217235,61022.0,61021.0,0.001]
[1727951668861,0.171875,61023.0,61021.0,0.001]
[1727951669093,0.014,61023.0,61022.0,0.001]
[1727951669319,0.006,61023.0,61022.0,0.001]
[1727951669554,0.169872,61023.0,61022.0,0.001]
[1727951670242,0.006,61023.0,61014.0,0.327789]
[1727951670462,0.006,61023.0,61007.0,0.0081697]
[1727951670463,0.327758,61021.0,61017.0,0.24828066]
[1727951670699,0.163886,61018.0,61017.0,0.001]
[1727951670945,0.26663145,61018.0,61017.0,0.001]
[1727951671183,0.26663145,61018.0,61010.0,0.25071296]
[1727951671184,0.327792,61015.0,61010.0,0.25071296]
[1727951671402,0.163897,61014.0,61010.0,0.41461996]
[1727951671679,0.163897,61014.0,61011.0,0.163904]
[1727951671875,0.327792,61015.0,61010.0,0.001436]
[1727951671876,0.10318655,61013.0,61010.0,0.001436]
[1727951672326,0.35046059,61012.0,61010.0,0.001436]
[1727951673016,0.43098955,61013.0,61010.0,0.001436]
[1727951673237,0.163903,61012.0,61010.0,0.001436]
[1727951673475,0.327792,61015.0,61010.0,0.167343]
[1727951673476,0.163898,61014.0,61010.0,0.167343]
[1727951673708,0.327793,61014.0,61010.0,0.167343]
[1727951673933,0.163899,61013.0,61010.0,0.165343]
[1727951674155,0.169899,61013.0,61010.0,0.001436]
[1727951674599,0.011,61013.0,61010.0,0.165342]
[1727951674851,0.168899,61013.0,61010.0,0.165342]
[1727951675069,0.168899,61013.0,61010.0,0.001436]
[1727951675751,0.29194121,61013.0,61010.0,0.001436]
[1727951675981,0.168899,61013.0,61010.0,0.165343]
[1727951676875,0.168899,61013.0,61010.0,0.001436]
[1727951677102,0.1689,61013.0,61010.0,0.001436]
[1727951677318,0.005,61013.0,61010.0,0.001436]
[1727951677536,0.011,61013.0,61010.0,0.001436]
[1727951677769,0.163929,61002.0,60994.0,0.04885367]
[1727951677990,0.163929,61002.0,60993.0,0.24828066]
[1727951677991,0.52628899,61002.0,60993.0,0.24828066]
[1727951678221,0.16395,60994.0,60993.0,0.24828066]
[1727951678431,0.53229641,60994.0,60993.0,0.24818066]
[1727951678668,0.53229641,60994.0,60987.0,0.0026213]
[1727951678669,0.163966,60988.0,60987.0,0.0026213]
[1727951679106,0.163966,60988.0,60987.0,0.001634]
[1727951679343,0.0491727,60995.0,60987.0,0.001634]
[1727951679558,0.20463096,61000.0,60987.0,0.165602]
[1727951679559,0.163946,60996.0,60987.0,0.165602]
[1727951679773,0.163951,60994.0,60987.0,0.001634]
[1727951679982,0.327885,60997.0,60987.0,0.001634]
[1727951680239,0.163952,60994.0,60987.0,0.001634]
[1727951680703,0.177952,60994.0,60987.0,0.24991466]
[1727951680918,0.163953,60993.0,60987.0,0.24991466]
[1727951681350,0.163953,60993.0,60987.0,0.41388266]
[1727951681567,0.007,60994.0,60987.0,0.002634]
[1727951681783,0.163956,60992.0,60987.0,0.001634]
[1727951681990,0.16396,60991.0,60987.0,0.002634]
[1727951682204,0.163962,60990.0,60987.0,0.002634]
[1727951682425,0.163966,60988.0,60987.0,0.001634]
[1727951682639,0.163964,60989.0,60987.0,0.002634]
[1727951682850,0.02570119,60992.0,60987.0,0.002634]
[1727951683281,0.163962,60990.0,60987.0,0.002634]
[1727951683499,0.163958,60991.0,60987.0,0.166602]
[1727951683702,0.03458091,60992.0,60987.0,0.002634]
[1727951683913,0.163962,60990.0,60987.0,0.002634]
[1727951684125,0.25089689,60990.0,60987.0,0.001634]
[1727951684331,0.08693489,60990.0,60987.0,0.165602]
[1727951684539,0.163961,60990.0,60987.0,0.001634]
[1727951684963,0.163961,60990.0,60987.0,0.002634]
[1727951685174,0.34192,60991.0,60987.0,0.002634]
[1727951685175,0.163964,60989.0,60987.0,0.001634]
[1727951685385,0.163964,60989.0,60987.0,0.002634]
[1727951686216,0.163966,60988.0,60987.0,0.002634]
[1727951686639,0.23183487,60989.0,60987.0,0.002634]
[1727951687294,0.23183487,60989.0,60987.0,0.001634]
[1727951687295,0.163966,60988.0,60987.0,0.001634]
[1727951687508,0.21626735,60988.0,60987.0,0.001634]
[1727951688152,0.21626735,60988.0,60987.0,0.002634]
[1727951688374,0.21626735,60988.0,60987.0,0.001634]
[1727951688587,0.163966,60988.0,60987.0,0.001634]
[1727951688803,0.168966,60988.0,60987.0,0.001634]
[1727951690331,0.173966,60988.0,60987.0,0.001634]
[1727951691677,0.01,60988.0,60987.0,0.001634]
[1727951692311,0.173966,60988.0,60987.0,0.001634]
[1727951692530,0.01,60988.0,60987.0,0.001634]
[1727951692748,0.01,60988.0,60987.0,0.165603]
[1727951692960,0.01,60988.0,60987.0,0.001634]
[1727951693187,0.01,60988.0,60987.0,0.165603]
[1727951693395,0.01,60988.0,60987.0,0.001634]
[1727951693601,0.01,60988.0,60987.0,0.165603]
[1727951694027,0.01,60988.0,60987.0,0.001634]
[1727951694451,0.01,60988.0,60987.0,0.165603]
[1727951700818,0.01,60988.0,60987.0,0.001634]
[1727951701258,0.005,60988.0,60987.0,0.165603]
[1727951701699,0.004,60988.0,60987.0,0.165603]
[1727951701922,0.007,60988.0,60987.0,0.165603]
[1727951702150,0.003,60988.0,60987.0,0.165603]
[1727951703692,0.007,60988.0,60987.0,0.165603]
[1727951704555,0.44990109,60988.0,60987.0,0.001634]
[1727951705896,0.6130878,60988.0,60987.0,0.001634]
[1727951706548,0.6090878,60988.0,60987.0,0.001634]
[1727951706989,0.6160878,60988.0,60987.0,0.001634]
[1727951707439,0.6060878,60988.0,60987.0,0.001634]
[1727951707662,0.6220878,60988.0,60987.0,0.002634]
[1727951708110,0.6220878,60988.0,60987.0,0.001534]
[1727951708111,0.6150878,60988.0,60987.0,0.001534]
[1727951708342,0.69154862,60988.0,60987.0,0.002434]
[1727951708587,0.7192532,60988.0,60987.0,0.001434]
[1727951708809,0.1898,60984.0,60976.0,0.000998]
[1727951709027,0.51735359,60977.0,60976.0,0.000898]
[1727951709260,0.244007,60973.0,60972.0,0.24828066]
[1727951709526,0.43056459,60973.0,60972.0,0.24818066]
[1727951709817,0.328035,60970.0,60964.0,0.16403]
[1727951709986,0.328035,60970.0,60963.0,0.24828066]
[1727951709987,0.164023,60967.0,60963.0,0.24828066]
[1727951710206,0.18655759,60968.0,60963.0,0.24828066]
[1727951710420,0.164027,60966.0,60963.0,0.24828066]
[1727951710639,0.08,60963.0,60960.0,0.0009815]
[1727951710858,0.164041,60960.0,60959.0,0.24991866]
[1727951711078,0.35059859,60960.0,60959.0,0.001638]
[1727951711305,0.48535232,60960.0,60959.0,0.001638]
[1727951711531,0.64853903,60960.0,60959.0,0.001638]
[1727951711757,0.72953903,60960.0,60959.0,0.001538]
[1727951711970,0.78299035,60960.0,60959.0,0.001538]
[1727951712195,0.78399035,60960.0,60959.0,0.001538]
[1727951712628,0.73053903,60960.0,60959.0,0.001538]
[1727951713537,0.72953903,60960.0,60959.0,0.001538]
[1727951714395,0.75753903,60960.0,60959.0,0.002538]
[1727951714622,0.273041,60960.0,60959.0,0.002538]
[1727951714837,0.245041,60960.0,60959.0,0.001538]
[1727951715052,0.273041,60960.0,60959.0,0.002538]
[1727951715269,0.028,60960.0,60959.0,0.171582]
[1727951715725,0.028,60960.0,60959.0,0.172582]
[1727951715726,0.042,60960.0,60959.0,0.172582]
[1727951716684,0.028,60960.0,60959.0,0.172582]
[1727951716970,0.042,60960.0,60959.0,0.172582]
[1727951717462,0.028,60960.0,60959.0,0.172582]
[1727951717707,0.0828,60970.0,60959.0,0.172582]
[1727951717708,0.164021,60968.0,60963.0,0.492098]
[1727951717942,0.06065891,60968.0,60963.0,0.328067]
[1727951718168,0.22467991,60968.0,60963.0,0.492098]
[1727951718408,0.02571153,60967.0,60964.0,0.16403]
[1727951718867,0.25585657,60967.0,60964.0,0.16403]
[1727951719112,0.09183357,60967.0,60964.0,0.16403]
[1727951719364,0.09183357,60967.0,60965.0,0.164027]
[1727951719607,0.06612204,60967.0,60964.0,0.16403]
[1727951719837,0.06612204,60967.0,60965.0,0.164027]
[1727951720314,0.06612204,60967.0,60964.0,0.164029]
[1727951720549,0.07206309,60966.0,60964.0,0.164029]
[1727951720823,0.23367991,60968.0,60965.0,0.164028]
[1727951720824,0.018,60967.0,60965.0,0.164028]
[1727951721031,0.018,60967.0,60966.0,0.164025]
[1727951721293,0.026,60967.0,60966.0,0.164025]
[1727951721503,0.008,60967.0,60966.0,0.164025]
[1727951721711,0.34828066,60976.0,60964.0,0.328062]
[1727951721928,0.008,60966.0,60965.0,0.49208]
[1727951723905,0.02571053,60974.0,60963.0,0.328067]
[1727951724130,0.02571053,60974.0,60971.0,0.164012]
[1727951724359,0.02571053,60974.0,60972.0,0.164009]
[1727951724586,0.02571053,60974.0,60973.0,0.164007]
[1727951724808,0.0753,60978.0,60970.0,0.328026]
[1727951725062,0.163984,60982.0,60971.0,0.328022]
[1727951725281,0.0796,60985.0,60978.0,0.163993]
[1727951725282,0.05716287,60981.0,60978.0,0.163993]
[1727951725497,0.05716287,60981.0,60976.0,0.327995]
[1727951725498,0.163989,60980.0,60976.0,0.163996]
[1727951725715,0.327966,60982.0,60968.0,0.24928016]
[1727951725716,0.327972,60981.0,60968.0,0.24928016]
[1727951725935,0.163986,60981.0,60977.0,0.163995]
[1727951726159,0.327956,60984.0,60978.0,0.163992]
[1727951726381,0.163984,60982.0,60978.0,0.163992]
[1727951726602,0.163988,60980.0,60977.0,0.163995]
[1727951726819,0.491953,60982.0,60977.0,0.163995]
[1727951727059,0.175986,60981.0,60977.0,0.163995]
[1727951727274,0.163988,60980.0,60977.0,0.163995]
[1727951727486,0.339968,60982.0,60975.0,0.328002]
[1727951727487,0.012,60982.0,60978.0,0.163992]
[1727951727705,0.011,60980.0,60978.0,0.163992]
[1727951727919,0.011,60980.0,60975.0,0.328002]
[1727951727920,0.021,60980.0,60979.0,0.16399]
[1727951728379,0.011,60980.0,60979.0,0.16399]
[1727951728595,0.019,60980.0,60979.0,0.16399]
[1727951729203,0.008,60980.0,60979.0,0.16399]
[1727951729917,0.017,60980.0,60979.0,0.16399]
[1727951730134,0.017,60980.0,60979.0,0.16499]
[1727951730135,0.024,60980.0,60979.0,0.16499]
[1727951730362,0.016,60980.0,60979.0,0.16399]
[1727951730789,0.022,60980.0,60979.0,0.16499]
[1727951731663,0.013,60980.0,60979.0,0.16499]
[1727951732577,0.013,60980.0,60979.0,0.42747671]
[1727951733038,0.019,60980.0,60979.0,0.42747671]
[1727951733476,0.000819,60982.0,60979.0,0.26248671]
[1727951733698,0.000819,60982.0,60981.0,0.163985]
[1727951733919,0.000819,60982.0,60981.0,0.32717171]
[1727951734577,0.000819,60982.0,60981.0,0.163985]
[1727951734994,0.000819,60982.0,60981.0,0.168985]
[1727951735220,0.081219,60982.0,60981.0,0.005]
[1727951735505,0.13423436,60982.0,60981.0,0.168985]
[1727951735952,0.29821636,60982.0,60981.0,0.005]
[1727951736180,0.29821636,60982.0,60979.0,0.165989]
[1727951736442,0.1140679,60981.0,60979.0,0.329977]
[1727951736648,0.1140679,60981.0,60980.0,0.163988]
[1727951737697,0.005,60981.0,60980.0,0.163988]
[1727951737902,0.011,60981.0,60980.0,0.163988]
[1727951738111,0.006,60981.0,60980.0,0.163988]
[1727951739565,0.011,60981.0,60980.0,0.163988]
[1727951740632,0.011819,60981.0,60980.0,0.163988]
[1727951741252,0.006819,60981.0,60980.0,0.163988]
[1727951741455,0.000819,60981.0,60980.0,0.163988]
[1727951742540,0.000819,60981.0,60979.0,0.163989]
[1727951742755,0.0165621,60980.0,60978.0,0.00403]
[1727951742997,0.16399,60979.0,60978.0,0.00403]
[1727951743209,0.1805501,60980.0,60978.0,0.00403]
[1727951743418,0.10306687,60979.0,60978.0,0.00403]
[1727951743866,0.000819,60981.0,60980.0,0.163988]
[1727951743867,0.006819,60981.0,60980.0,0.163988]
[1727951744332,0.000819,60981.0,60980.0,0.163988]
[1727951746251,0.001819,60981.0,60980.0,0.165988]
[1727951746469,0.005819,60981.0,60980.0,0.165988]
[1727951746678,0.000819,60981.0,60980.0,0.163988]
[1727951746905,0.002819,60981.0,60980.0,0.171988]
[1727951747126,0.002819,60981.0,60980.0,0.165988]
[1727951747348,0.002819,60981.0,60980.0,0.163988]
[1727951747564,0.001819,60981.0,60980.0,0.167988]
[1727951747802,0.001819,60981.0,60980.0,0.169988]
[1727951748940,0.001819,60981.0,60980.0,0.167988]
[1727951749357,0.000819,60981.0,60980.0,0.165988]
[1727951749824,0.000819,60981.0,60980.0,0.170988]
[1727951751562,0.000819,60981.0,60980.0,0.170988]
[1727951753164,0.000819,60981.0,60980.0,0.52204549]
[1727951753390,0.000819,60981.0,60980.0,0.5207323]
[1727951753626,0.000819,60981.0,60980.0,0.5137323]
[1727951753839,0.000819,60981.0,60980.0,0.5207323]
[1727951754798,0.000819,60981.0,60980.0,0.5157323]
[1727951755240,0.000819,60981.0,60980.0,0.5941319]
[1727951755473,0.000819,60981.0,60980.0,0.5991319]
[1727951755684,0.001819,60981.0,60980.0,0.5971323]
[1727951755908,0.002819,60981.0,60980.0,0.7041323]
[1727951756336,0.002819,60981.0,60980.0,0.71224485]
[1727951756783,0.001819,60981.0,60980.0,0.70724485]
[1727951757216,0.001819,60981.0,60980.0,0.71024485]
[1727951757407,0.001819,60981.0,60980.0,0.72224485]
[1727951757652,0.002819,60981.0,60980.0,0.72224485]
[1727951757869,0.002819,60981.0,60980.0,0.71024485]
[1727951758312,0.002819,60981.0,60980.0,0.43528726]
[1727951758524,0.001819,60981.0,60980.0,0.43528726]
[1727951758734,0.002819,60981.0,60980.0,0.44628726]
[1727951759159,0.001819,60981.0,60980.0,0.44728726]
[1727951759397,0.002819,60981.0,60980.0,0.64384485]
[1727951759614,0.001819,60981.0,60980.0,0.63184485]
[1727951760091,0.000819,60981.0,60980.0,0.62184485]
[1727951760341,0.001819,60981.0,60980.0,0.64284485]
[1727951760790,0.001819,60981.0,60980.0,0.63384445]
[1727951761049,0.001819,60981.0,60980.0,0.64584445]
[1727951761481,0.000819,60981.0,60980.0,0.63584445]
[1727951761725,0.000819,60981.0,60980.0,0.63384485]
[1727951761947,0.001819,60981.0,60980.0,0.64484485]
[1727951762198,0.001819,60981.0,60980.0,0.63284485]
[1727951762435,0.001819,60981.0,60980.0,0.62184485]
[1727951762436,0.000819,60981.0,60980.0,0.62184485]
[1727951762671,0.001819,60981.0,60980.0,0.64484485]
[1727951762888,0.001819,60981.0,60980.0,0.63284485]
[1727951764645,0.001819,60981.0,60980.0,0.45828726]
[1727951765934,0.001819,60981.0,60980.0,0.186988]
[1727951770035,0.077919,60981.0,60980.0,0.023]
[1727951770252,0.35042246,60981.0,60980.0,0.023]
[1727951770693,0.44122246,60981.0,60980.0,0.023]
[1727951770926,0.44122246,60981.0,60980.0,0.011]
[1727951771362,0.44022246,60981.0,60980.0,0.003]
[1727951771571,0.16399,60979.0,60978.0,0.00403]
[1727951771963,0.331705,60981.0,60978.0,0.168022]
[1727951772208,0.163988,60980.0,60978.0,0.00403]
[1727951772411,0.163989,60980.0,60978.0,0.00403]
[1727951772631,0.171719,60981.0,60978.0,0.00403]
[1727951772852,0.174719,60981.0,60978.0,0.168023]
[1727951773067,0.334705,60981.0,60978.0,0.168023]
[1727951773478,0.002,60980.0,60978.0,0.00403]
[1727951773723,0.335705,60981.0,60978.0,0.00403]
[1727951773966,0.335705,60981.0,60978.0,0.168023]
[1727951774212,0.338705,60981.0,60978.0,0.00403]
[1727951774436,0.335705,60981.0,60978.0,0.00403]
[1727951774671,0.167719,60981.0,60978.0,0.00403]
[1727951774890,0.002,60980.0,60978.0,0.00403]
[1727951775135,0.005,60980.0,60978.0,0.00403]
[1727951775387,0.16399,60979.0,60978.0,0.00403]
[1727951776118,0.2958328,60979.0,60978.0,0.00403]
[1727951776606,0.2978328,60979.0,60978.0,0.00403]
[1727951776841,0.16599,60979.0,60978.0,0.00403]
[1727951777545,0.16699,60979.0,60978.0,0.00403]
[1727951781500,0.16699,60979.0,60978.0,0.268023]
[1727951781501,0.003,60979.0,60978.0,0.268023]
[1727951782515,0.003,60979.0,60978.0,0.10403]
[1727951782751,0.003,60979.0,60978.0,0.268023]
[1727951783019,0.003,60979.0,60978.0,0.6177673]
[1727951784227,0.002,60979.0,60978.0,0.6177673]
[1727951784462,0.000819,60981.0,60980.0,0.163988]
[1727951786183,0.000819,60981.0,60980.0,0.164988]
[1727951786682,0.164804,60981.0,60980.0,0.001]
[1727951786878,0.0580664,60981.0,60980.0,0.001]
[1727951787133,0.239804,60981.0,60980.0,0.001]
[1727951787357,0.163989,60980.0,60978.0,0.10403]
[1727951787610,0.169019,60981.0,60979.0,0.163989]
[1727951787849,0.172019,60981.0,60980.0,0.163988]
[1727951788062,0.172019,60981.0,60978.0,0.10403]
[1727951788063,0.078819,60981.0,60979.0,0.32798]
[1727951788285,0.078819,60981.0,60980.0,0.163988]
[1727951788724,0.078819,60981.0,60978.0,0.269022]
[1727951788935,0.075819,60981.0,60979.0,0.16399]
[1727951789145,0.081819,60981.0,60978.0,0.10403]
[1727951789391,0.087819,60981.0,60979.0,0.001]
[1727951789635,0.087819,60981.0,60980.0,0.163988]
[1727951790076,0.081819,60981.0,60980.0,0.163988]
[1727951790307,0.087819,60981.0,60980.0,0.163988]
[1727951790566,0.075819,60981.0,60978.0,0.10403]
[1727951790781,0.075819,60981.0,60978.0,0.268022]
[1727951791173,0.075819,60981.0,60979.0,0.16399]
[1727951791414,0.087819,60981.0,60979.0,0.16399]
[1727951791856,0.087819,60981.0,60980.0,0.163988]
[1727951792066,0.081819,60981.0,60980.0,0.163988]
[1727951792715,0.087819,60981.0,60980.0,0.163988]
[1727951793174,0.081819,60981.0,60979.0,0.001]
[1727951793622,0.163988,60980.0,60979.0,0.001]
[1727951793856,0.403791,60981.0,60978.0,0.10403]
[1727951794078,0.16399,60979.0,60978.0,0.10403]
[1727951794313,0.2540476,60979.0,60978.0,0.10403]
[1727951794759,0.16399,60979.0,60978.0,0.10403]
[1727951795189,0.16399,60979.0,60978.0,0.10503]
[1727951795401,0.088819,60981.0,60979.0,0.16399]
[1727951795608,0.088819,60981.0,60978.0,0.10503]
[1727951795609,0.083819,60981.0,60978.0,0.10403]
[1727951795820,0.003,60979.0,60978.0,0.10403]
[1727951796039,0.0929562,60979.0,60978.0,0.10403]
[1727951796246,0.0949562,60979.0,60978.0,0.10403]
[1727951796711,0.2589462,60979.0,60978.0,0.10403]
[1727951796933,0.16899,60979.0,60978.0,0.10403]
[1727951797154,0.16399,60979.0,60978.0,0.10403]
[1727951797374,0.16599,60979.0,60978.0,0.10403]
[1727951798242,0.16899,60979.0,60978.0,0.10403]
[1727951798451,0.07049062,60979.0,60978.0,0.10403]
[1727951798666,0.07049062,60979.0,60978.0,0.268023]
[1727951798891,0.005,60979.0,60978.0,0.268023]
[1727951800657,0.005,60979.0,60978.0,0.10403]
[1727951801130,0.005,60979.0,60978.0,0.268023]
[1727951801350,0.005,60979.0,60978.0,0.10403]
[1727951801601,0.005,60979.0,60978.0,0.268023]
[1727951804270,0.0623583,60979.0,60978.0,0.10403]
[1727951805192,0.2263483,60979.0,60978.0,0.10403]
[1727951805426,0.3040483,60979.0,60978.0,0.10403]
[1727951808103,0.1400583,60979.0,60978.0,0.10403]
[1727951808320,0.0827,60979.0,60978.0,0.268023]
[1727951808539,0.0827,60979.0,60978.0,0.10403]
[1727951809633,0.0827,60979.0,60978.0,0.268023]
[1727951811409,0.083519,60979.0,60978.0,0.268023]
[1727951813252,0.083519,60979.0,60978.0,0.10403]
[1727951813679,0.083519,60979.0,60978.0,0.268023]
[1727951813900,0.083519,60979.0,60978.0,0.10403]
[1727951814318,0.083519,60979.0,60978.0,0.268023]
[1727951815934,0.083519,60979.0,60978.0,0.10403]
[1727951817048,0.35605026,60979.0,60978.0,0.10403]
[1727951817363,0.52053561,60979.0,60978.0,0.10403]
[1727951817570,0.59879879,60979.0,60978.0,0.10403]
[1727951818610,0.59893993,60979.0,60978.0,0.10403]
[1727951819650,0.62464702,60979.0,60978.0,0.10403]
[1727951820820,0.51610576,60979.0,60978.0,0.10403]
[1727951821899,0.51609805,60979.0,60978.0,0.10403]
[1727951822313,0.41758415,60979.0,60978.0,0.10403]
[1727951822524,0.51609805,60979.0,60978.0,0.10403]
[1727951823399,0.51609805,60979.0,60978.0,0.05403]
[1727951823607,0.70391323,60979.0,60978.0,0.05403]
[1727951825102,0.67820614,60979.0,60978.0,0.05403]
[1727951827322,0.67815586,60979.0,60978.0,0.05403]
[1727951827529,0.55506377,60979.0,60978.0,0.05403]
[1727951827742,0.67815586,60979.0,60978.0,0.05403]
[1727951828171,0.55506377,60979.0,60978.0,0.05403]
[1727951828403,0.58077146,60979.0,60978.0,0.05403]
[1727951829538,0.55506377,60979.0,60978.0,0.05403]
[1727951829768,0.55506377,60979.0,60970.0,0.00203]
[1727951829769,0.164012,60971.0,60970.0,0.00203]
[1727951829992,0.81182952,60971.0,60970.0,0.00193]
[1727951830206,0.86539759,60971.0,60970.0,0.00183]
[1727951830439,0.74237176,60971.0,60970.0,0.00183]
[1727951830654,0.89698259,60971.0,60970.0,0.00183]
[1727951831277,0.89698259,60971.0,60970.0,0.00163]
[1727951831484,0.90098259,60971.0,60970.0,0.00163]
[1727951831917,0.89698259,60971.0,60970.0,0.00163]
[1727951832156,0.74837176,60971.0,60970.0,0.00263]
[1727951832775,0.78808424,60971.0,60970.0,0.00363]
[1727951833198,0.89696311,60971.0,60970.0,0.00263]
[1727951833410,0.78108424,60971.0,60970.0,0.00163]
[1727951833828,0.79108424,60971.0,60970.0,0.00263]
[1727951834034,0.94055892,60971.0,60970.0,0.00163]
[1727951834241,1.06340324,60971.0,60970.0,0.00163]
[1727951834445,1.07340324,60971.0,60970.0,0.00263]
[1727951835059,1.04769076,60971.0,60970.0,0.00263]
[1727951835266,0.92484644,60971.0,60970.0,0.00263]
[1727951835486,1.04769076,60971.0,60970.0,0.00263]
[1727951836331,1.04769076,60971.0,60970.0,0.00253]
[1727951836544,1.04769076,60971.0,60970.0,0.00243]
[1727951836817,1.04769076,60971.0,60970.0,0.00223]
[1727951836818,1.04784644,60971.0,60970.0,0.00223]
[1727951837021,0.70181417,60971.0,60970.0,0.00223]
[1727951837241,0.57792372,60971.0,60970.0,0.00223]
[1727951837478,0.36112155,60971.0,60970.0,0.00223]
[1727951837926,0.262912,60971.0,60970.0,0.00223]
[1727951838170,0.31200905,60971.0,60970.0,0.00223]
[1727951838375,0.33772077,60971.0,60970.0,0.00223]
[1727951838585,0.28862372,60971.0,60970.0,0.00223]
[1727951838791,0.33772093,60971.0,60970.0,0.00223]
[1727951839243,0.28862372,60971.0,60970.0,0.00223]
[1727951839657,0.41401954,60971.0,60970.0,0.00223]
[1727951840074,0.39101954,60971.0,60970.0,0.00123]
[1727951840485,0.41201954,60971.0,60970.0,0.00323]
[1727951840694,0.41201954,60971.0,60970.0,0.00223]
[1727951841109,0.41701954,60971.0,60970.0,0.00223]
[1727951841740,0.20272372,60971.0,60970.0,0.00123]
[1727951841954,0.04471172,60971.0,60970.0,0.00223]
[1727951842809,0.20872372,60971.0,60970.0,0.00223]
[1727951843019,0.20272372,60971.0,60970.0,0.00123]
[1727951843262,0.19472372,60971.0,60970.0,0.00223]
[1727951843484,0.03071172,60971.0,60970.0,0.00223]
[1727951844089,0.03471172,60971.0,60970.0,0.00223]
[1727951844582,0.19872372,60971.0,60970.0,0.00223]
[1727951844830,0.03471172,60971.0,60970.0,0.00223]
[1727951846112,0.19872372,60971.0,60970.0,0.00223]
[1727951847388,0.03471172,60971.0,60970.0,0.00223]
[1727951847823,0.19872372,60971.0,60970.0,0.00223]